bitfinex-derivatives/quotes_SOLF0:USTF0_20260213
["timestamp","ask_amount","ask_price","bid_price","bid_amount"]
[1770975970440,3.47059099,79.61,79.544,101.86]
[1770975970441,3.47059099,79.61,79.579,11.3178]
[1770975970645,3.47059099,79.62,79.57,3.47059099]
[1770975970944,3.47059099,79.61,79.57,3.47059099]
[1770975971134,4.52795886,79.601,79.55,3.47059099]
[1770975971333,4.52795886,79.589,79.54,3.47059099]
[1770975971533,3.47059099,79.58,79.54,3.47059099]
[1770975971937,4.5382171,79.569,79.507,23.36781417]
[1770975972146,4.5382171,79.569,79.52,3.47059099]
[1770975972839,4.5382171,79.569,79.534,11.3242]
[1770975973041,4.5382171,79.569,79.508,148.78]
[1770975973343,8.00880809,79.56,79.524,11.3257]
[1770975975848,3.47059099,79.57,79.535,11.3241]
[1770975976247,3.47059099,79.57,79.53,3.47059099]
[1770975976248,3.47059099,79.58,79.54,3.47059099]
[1770975976843,3.46755758,79.58,79.54,3.46755758]
[1770975977749,3.46755758,79.58,79.545,11.3228]
[1770975981248,3.46755758,79.58,79.551,11.3218]
[1770975982456,3.46755758,79.58,79.543,11.323]
[1770975983456,3.46755758,79.58,79.549,11.3221]
[1770975985057,3.46755758,79.58,79.559,11.3208]
[1770975985354,3.46755758,79.59,79.559,11.3208]
[1770975985560,111.12,79.63,79.55,3.46755758]
[1770975985561,3.46755758,79.6,79.55,3.46755758]
[1770975986052,4.53857191,79.605,79.56,3.46755758]
[1770975986259,3.46755758,79.61,79.56,3.46755758]
[1770975986446,3.46755758,79.61,79.57,3.46755758]
[1770975987046,111.12,79.63,79.548,130.94]
[1770975987047,3.46755758,79.6,79.548,130.94]
[1770975987256,4.54307048,79.609,79.56,3.46755758]
[1770975987562,3.46755758,79.61,79.57,3.46755758]
[1770975988154,3.46755758,79.61,79.577,11.3181]
[1770975990163,4.66037816,79.609,79.577,11.3181]
[1770975992768,4.66265889,79.618,79.583,11.3173]
[1770975993668,15.97515889,79.618,79.583,11.3173]
[1770975993870,3.46755758,79.61,79.583,11.3173]
[1770975995172,4.66265889,79.618,79.583,11.3173]
[1770975995779,4.66023064,79.617,79.583,11.3173]
[1770975997173,3.46755758,79.62,79.589,11.3165]
[1770975997374,4.61776207,79.628,79.589,11.3165]
[1770975997869,4.62895927,79.619,79.582,11.3174]
[1770975998068,4.62895927,79.619,79.57,3.46755758]
[1770975998271,4.62895927,79.609,79.56,3.46755758]
[1770975999370,4.62895927,79.609,79.57,11.3191]
[1770975999570,4.62895927,79.599,79.542,100.28]
[1770975999764,4.62895927,79.599,79.56,3.46755758]
[1770976000571,100.28,79.643,79.56,3.46755758]
[1770976000572,9.15625874,79.636,79.56,3.46755758]
[1770976000772,8.10076817,79.63,79.58,3.46755758]
[1770976000971,4.63321059,79.629,79.58,3.46755758]
[1770976001175,3.46755758,79.62,79.59,11.3163]
[1770976002372,3.46755758,79.62,79.58,3.46755758]
[1770976002373,4.68089564,79.627,79.583,11.3173]
[1770976003171,4.68089564,79.627,79.59,11.3163]
[1770976004780,4.68089564,79.627,79.59,14.78385758]
[1770976005178,4.68089564,79.627,79.59,11.3163]
[1770976005575,8.14735507,79.64,79.6,3.46755758]
[1770976005776,8.14735507,79.64,79.561,23.36781417]
[1770976005777,4.67979749,79.639,79.569,101.32]
[1770976006082,4.67026404,79.629,79.59,3.46755758]
[1770976006277,4.67026404,79.629,79.58,3.46755758]
[1770976006679,4.67026404,79.629,79.587,11.3168]
[1770976006877,200.35087811,79.669,79.559,100.28]
[1770976006878,4.67026404,79.619,79.57,3.46755758]
[1770976007179,4.67026404,79.619,79.58,3.46755758]
[1770976007570,4.67026404,79.619,79.57,3.46755758]
[1770976007768,4.67026404,79.619,79.58,11.3178]
[1770976008172,4.67026404,79.619,79.58,3.46755758]
[1770976008978,4.70650714,79.629,79.58,3.46755758]
[1770976009179,4.70650714,79.629,79.591,11.3161]
[1770976010474,4.70650714,79.629,79.597,11.3153]
[1770976012272,3.46755758,79.64,79.597,11.3153]
[1770976012472,8.20262404,79.64,79.6,3.46755758]
[1770976012877,4.73506646,79.639,79.602,11.3146]
[1770976014583,4.72097329,79.637,79.594,11.3157]
[1770976014783,3.46755758,79.63,79.594,11.3157]
[1770976015084,4.72097329,79.637,79.6,3.46755758]
[1770976015279,4.72097329,79.637,79.6,14.78255758]
[1770976015674,4.72097329,79.637,79.568,101.58]
[1770976015879,4.72097329,79.637,79.6,3.46755758]
[1770976017282,4.72097329,79.637,79.59,3.46755758]
[1770976018880,4.72097329,79.637,79.6,3.46755758]
[1770976020383,4.84278006,79.649,79.61,3.46755758]
[1770976021983,4.84278006,79.649,79.61,14.78105758]
[1770976024583,3.46755758,79.65,79.615,11.3127]
[1770976024782,8.32831721,79.66,79.62,3.46755758]
[1770976025181,4.86075963,79.659,79.62,3.46755758]
[1770976025782,4.86075963,79.659,79.623,11.3116]
[1770976028692,4.84147571,79.669,79.634,11.3101]
[1770976032292,3.46755758,79.66,79.634,11.3101]
[1770976034399,3.46755758,79.64,79.592,22.6322]
[1770976034598,3.46755758,79.64,79.59,3.46755758]
[1770976035089,4.86353694,79.619,79.57,3.46755758]
[1770976035289,3.46755758,79.61,79.57,3.46755758]
[1770976036300,3.46755758,79.6,79.577,11.3182]
[1770976036497,5.03313322,79.609,79.577,11.3182]
[1770976038894,5.02804663,79.62,79.584,11.3171]
[1770976039092,3.46515039,79.61,79.584,11.3171]
[1770976046598,3.46515039,79.59,79.565,267.60911256]
[1770976046804,5.01991398,79.599,79.565,267.60911256]
[1770976047806,5.01991398,79.599,79.575,11.3184]
[1770976048604,5.01733935,79.626,79.589,11.3164]
[1770976048908,3.46515039,79.62,79.589,11.3164]
[1770976049303,3.46515039,79.61,79.582,11.3174]
[1770976049904,3.46515039,79.61,79.588,11.3166]
[1770976050103,3.46515039,79.62,79.588,11.3166]
[1770976050409,8.46929539,79.62,79.588,11.3166]
[1770976050708,8.46929539,79.62,79.593,11.3158]
[1770976051812,3.46515039,79.62,79.593,11.3158]
[1770976052113,3.46515039,79.62,79.58,3.46515039]
[1770976052311,3.46515039,79.63,79.59,3.46515039]
[1770976052513,5.03766802,79.638,79.59,3.46515039]
[1770976053511,3.46515039,79.63,79.59,3.46515039]
[1770976053712,3.46515039,79.63,79.585,172.64]
[1770976054719,3.46515039,79.63,79.604,11.3144]
[1770976055816,3.46515039,79.63,79.61,11.3135]
[1770976057326,106.64,79.67,79.57,22.6385]
[1770976057327,8.38769314,79.65,79.618,11.3124]
[1770976058022,8.38929331,79.65,79.618,11.3124]
[1770976058325,4.92414292,79.649,79.618,11.3124]
[1770976060329,3.46515039,79.67,79.63,3.46515039]
[1770976061818,4.94761328,79.669,79.63,3.46515039]
[1770976062023,4.98406478,79.659,79.612,100.26]
[1770976062218,4.98406478,79.669,79.62,3.46515039]
[1770976062418,4.98406478,79.669,79.633,11.3102]
[1770976062822,3.46515039,79.68,79.64,3.46515039]
[1770976063023,4.98406478,79.679,79.64,3.46515039]
[1770976063725,4.98406478,79.679,79.642,11.3089]
[1770976063927,4.98406478,79.679,79.63,3.46515039]
[1770976065731,4.98406478,79.679,79.64,11.3092]
[1770976067533,4.98406478,79.679,79.64,14.77435039]
[1770976067830,4.87187707,79.692,79.65,3.46515039]
[1770976068431,4.87187707,79.692,79.658,11.3066]
[1770976068730,4.87187707,79.692,79.65,3.46515039]
[1770976068930,8.32483091,79.69,79.65,3.46515039]
[1770976069133,4.85968052,79.689,79.65,3.46515039]
[1770976069832,4.85968052,79.689,79.651,11.3076]
[1770976070033,4.88987871,79.701,79.65,3.46515039]
[1770976070225,2.18461915,79.721,79.65,3.46515039]
[1770976070226,4.88987871,79.699,79.657,11.3068]
[1770976070625,4.88987871,79.684,79.625,100.22]
[1770976070835,4.88987871,79.684,79.647,11.3082]
[1770976074838,4.88987871,79.684,79.653,11.3074]
[1770976079136,4.88987871,79.684,79.658,11.3066]
[1770976080141,3.46515039,79.69,79.658,11.3066]
[1770976080637,4.89781467,79.695,79.618,100.2]
[1770976080836,11.3004,79.703,79.665,11.3056]
[1770976081542,4.8979555,79.702,79.665,11.3056]
[1770976081836,3.46515039,79.7,79.665,11.3056]
[1770976082037,4.91273702,79.699,79.665,11.3056]
[1770976083039,14.76455039,79.71,79.665,11.3056]
[1770976083243,4.91273702,79.709,79.665,11.3056]
[1770976084240,4.9085626,79.706,79.665,11.3056]
[1770976084644,11.3014,79.696,79.66,3.46515039]
[1770976084936,4.9085626,79.697,79.653,11.3074]
[1770976085136,4.9085626,79.697,79.66,3.46515039]
[1770976086643,4.77261195,79.689,79.65,3.46515039]
[1770976087043,4.77261195,79.689,79.658,11.3066]
[1770976088144,4.73610186,79.698,79.65,3.46515039]
[1770976088345,4.73610186,79.709,79.66,3.46515039]
[1770976089749,4.73610186,79.709,79.672,11.3046]
[1770976094751,3.46515039,79.7,79.672,11.3046]
[1770976096255,4.73610186,79.709,79.678,11.3039]
[1770976097158,4.74698084,79.719,79.67,3.4566616]
[1770976097455,3.4566616,79.71,79.67,3.4566616]
[1770976097656,3.4566616,79.71,79.677,11.3039]
[1770976098056,3.4566616,79.71,79.682,11.3032]
[1770976098853,3.4566616,79.71,79.67,3.4566616]
[1770976099852,4.76919452,79.709,79.682,11.3033]
[1770976101857,4.78030924,79.719,79.682,11.3033]
[1770976102464,4.76645515,79.709,79.673,11.3045]
[1770976102655,4.76645515,79.709,79.636,23.36781417]
[1770976102656,4.76645515,79.699,79.65,3.4566616]
[1770976102959,4.76645515,79.689,79.64,3.4566616]
[1770976103462,4.76645515,79.699,79.65,3.4566616]
[1770976103661,100.16,79.728,79.66,3.4566616]
[1770976103662,4.76645515,79.709,79.66,3.4566616]
[1770976104459,3.4566616,79.7,79.65,3.4566616]
[1770976105554,3.4566616,79.7,79.66,3.4566616]
[1770976105862,3.4566616,79.7,79.671,11.3048]
[1770976106355,3.4566616,79.7,79.66,3.4566616]
[1770976106356,3.4566616,79.71,79.66,3.4566616]
[1770976106560,3.4566616,79.71,79.67,3.4566616]
[1770976107765,3.4566616,79.71,79.683,11.3031]
[1770976109965,8.27650359,79.71,79.683,11.3031]
[1770976110660,4.82809208,79.709,79.674,11.3044]
[1770976110865,4.82809208,79.699,79.674,11.3044]
[1770976112965,11.2992,79.712,79.674,11.3044]
[1770976113169,3.4566616,79.71,79.674,11.3044]
[1770976113369,4.82809825,79.709,79.674,11.3044]
[1770976115871,4.83453533,79.707,79.674,11.3044]
[1770976116964,4.84357184,79.722,79.66,3.4566616]
[1770976117268,4.84357184,79.719,79.66,3.4566616]
[1770976117672,11.2988,79.714,79.677,11.3039]
[1770976118373,4.84357184,79.719,79.67,3.4566616]
[1770976119772,4.82880545,79.717,79.67,3.4566616]
[1770976120361,11.62896917,79.75,79.654,23.36781417]
[1770976120568,9.15488449,79.749,79.71,3.4566616]
[1770976120770,4.80462621,79.749,79.7,3.4566616]
[1770976120970,4.80462621,79.749,79.71,3.4566616]
[1770976121169,4.80462621,79.749,79.684,23.36781417]
[1770976121372,4.80462621,79.749,79.7,3.4566616]
[1770976121872,4.80462621,79.747,79.701,11.3006]
[1770976122073,4.80462621,79.747,79.71,3.4566616]
[1770976122666,4.84906545,79.733,79.694,11.3016]
[1770976122975,4.84906545,79.733,79.7,3.4566616]
[1770976123174,4.84906545,79.733,79.694,11.3016]
[1770976123371,4.84906545,79.733,79.701,11.3006]
[1770976123577,4.84906545,79.757,79.72,3.4566616]
[1770976123972,4.84916061,79.769,79.73,3.4566616]
[1770976124675,4.84916061,79.769,79.733,11.296]
[1770976125371,4.84916061,79.769,79.678,22.6077]
[1770976125372,4.84916061,79.769,79.725,11.2972]
[1770976125965,3.4566616,79.76,79.717,11.2983]
[1770976126170,4.93430957,79.759,79.72,3.4566616]
[1770976126773,4.93430957,79.759,79.693,100.14]
[1770976127072,4.93430957,79.759,79.72,3.4566616]
[1770976127576,4.93430957,79.759,79.726,11.297]
[1770976127771,8.39097117,79.77,79.726,11.297]
[1770976127972,8.39097117,79.77,79.72,3.4566616]
[1770976127973,4.93430957,79.769,79.72,3.4566616]
[1770976129772,4.91234138,79.768,79.722,11.2976]
[1770976129976,11.291,79.769,79.697,100.12]
[1770976129977,4.88232012,79.775,79.73,3.4566616]
[1770976130180,4.88232012,79.775,79.671,175.8536]
[1770976130181,4.88232012,79.749,79.7,3.4566616]
[1770976130373,3.4566616,79.74,79.7,3.4566616]
[1770976131180,3.4566616,79.74,79.69,3.4566616]
[1770976131779,3.4566616,79.74,79.702,11.3004]
[1770976131976,5.08354091,79.739,79.69,3.4566616]
[1770976132180,5.08354091,79.739,79.681,100.12]
[1770976132181,3.4566616,79.73,79.681,100.12]
[1770976132370,3.4566616,79.73,79.68,3.4566616]
[1770976132371,3.4566616,79.72,79.68,3.4566616]
[1770976132577,3.4566616,79.72,79.66,106.18]
[1770976132779,8.54020251,79.73,79.68,3.4566616]
[1770976133179,8.54020251,79.73,79.686,11.3026]
[1770976133180,5.08354091,79.729,79.686,11.3026]
[1770976133477,3.4566616,79.72,79.686,11.3026]
[1770976138794,5.08354091,79.729,79.686,11.3026]
[1770976139088,3.4566616,79.72,79.686,11.3026]
[1770976141887,3.4566616,79.71,79.672,11.3047]
[1770976142092,3.4566616,79.7,79.65,3.4566616]
[1770976142287,3.4566616,79.71,79.67,3.4566616]
[1770976142483,3.4566616,79.72,79.67,3.4566616]
[1770976143293,8.5738401,79.72,79.67,3.4566616]
[1770976143492,5.1171785,79.719,79.67,3.4566616]
[1770976143893,5.1171785,79.719,79.683,11.3032]
[1770976144991,3.4566616,79.71,79.683,11.3032]
[1770976145191,5.14685354,79.709,79.676,11.304]
[1770976145395,3.4566616,79.71,79.676,11.304]
[1770976145585,22.5859,79.756,79.639,100.12]
[1770976145586,5.14685354,79.742,79.704,11.3001]
[1770976145789,3.4566616,79.73,79.69,3.4566616]
[1770976145989,3.4566616,79.74,79.7,3.4566616]
[1770976146190,5.14685354,79.742,79.7,3.4566616]
[1770976146395,3.4566616,79.75,79.7,3.4566616]
[1770976146694,5.15134839,79.753,79.715,11.2986]
[1770976147094,8.60800999,79.74,79.708,11.2996]
[1770976148391,5.2179123,79.753,79.708,11.2996]
[1770976148588,3.4566616,79.74,79.708,11.2996]
[1770976149391,5.2179123,79.749,79.714,11.2987]
[1770976149902,5.2179123,79.749,79.7,3.4566616]
[1770976151101,5.2179123,79.749,79.705,11.2999]
[1770976151598,5.2179123,79.749,79.718,11.2982]
[1770976151897,3.4566616,79.77,79.72,3.4566616]
[1770976152095,3.4566616,79.76,79.72,3.4566616]
[1770976152693,5.21699311,79.759,79.72,3.4566616]
[1770976153004,5.21699311,79.776,79.722,11.2976]
[1770976153303,5.21699311,79.769,79.722,11.2976]
[1770976153489,3.4566616,79.76,79.722,11.2976]
[1770976153690,3.4566616,79.76,79.72,3.4566616]
[1770976153691,5.21699311,79.759,79.72,3.4566616]
[1770976153890,5.21699311,79.749,79.671,45.97741417]
[1770976154194,5.19850315,79.739,79.7,3.4566616]
[1770976155197,5.19850315,79.739,79.692,11.3019]
[1770976155393,5.19850315,79.729,79.692,11.3019]
[1770976155593,5.19850315,79.719,79.68,3.4566616]
[1770976156104,5.19850315,79.719,79.689,11.3023]
[1770976159404,3.45547373,79.72,79.689,11.3023]
[1770976159809,3.45547373,79.72,79.68,3.45547373]
[1770976160706,3.45547373,79.72,79.686,11.3027]
[1770976161605,3.45547373,79.72,79.692,11.3018]
[1770976161807,5.16098471,79.729,79.692,11.3018]
[1770976163607,8.61983374,79.74,79.699,11.3008]
[1770976163809,5.16436001,79.739,79.699,11.3008]
[1770976165608,5.16436001,79.739,79.705,11.3]
[1770976167508,5.13454464,79.738,79.697,11.3011]
[1770976167704,3.45547373,79.73,79.697,11.3011]
[1770976167909,3.45547373,79.73,79.69,3.45547373]
[1770976168816,3.45547373,79.73,79.703,11.3003]
[1770976169018,8.59227393,79.73,79.703,11.3003]
[1770976169818,5.1368002,79.729,79.703,11.3003]
[1770976171529,5.1368002,79.729,79.69,3.45547373]
[1770976171919,5.1368002,79.729,79.68,3.45547373]
[1770976172121,3.45547373,79.72,79.68,3.45547373]
[1770976172518,5.1368002,79.729,79.68,3.45547373]
[1770976173022,5.1368002,79.729,79.681,11.3033]
[1770976173618,5.1368002,79.729,79.69,3.45547373]
[1770976174329,16.4335002,79.729,79.69,3.45547373]
[1770976176322,11.2976,79.723,79.69,3.45547373]
[1770976176630,5.1368002,79.729,79.69,3.45547373]
[1770976177225,5.1368002,79.729,79.68,3.45547373]
[1770976177428,5.1368002,79.729,79.69,3.45547373]
[1770976177730,3.45547373,79.74,79.7,3.45547373]
[1770976177924,11.2948,79.743,79.71,3.45547373]
[1770976179630,8.56332102,79.75,79.71,3.45547373]
[1770976179827,5.10784729,79.749,79.71,3.45547373]
[1770976180833,5.10784729,79.749,79.7,3.45547373]
[1770976181129,5.13455043,79.739,79.7,3.45547373]
[1770976181833,22.5801,79.776,79.71,3.45547373]
[1770976181834,5.13455043,79.749,79.71,3.45547373]
[1770976184034,5.13455043,79.749,79.707,11.2997]
[1770976184234,5.13455043,79.749,79.71,3.45547373]
[1770976184828,5.14785272,79.739,79.7,3.45547373]
[1770976185032,3.45547373,79.74,79.7,3.45547373]
[1770976185227,5.14785272,79.749,79.708,11.2995]
[1770976185435,8.60332645,79.76,79.72,3.45547373]
[1770976186033,8.60332645,79.76,79.727,11.2968]
[1770976187036,5.15992511,79.759,79.727,11.2968]
[1770976187425,5.15992511,79.759,79.732,11.2961]
[1770976189437,5.15992511,79.759,79.724,11.2972]
[1770976189635,5.09928223,79.749,79.724,11.2972]
[1770976189839,5.09928223,79.749,79.72,3.45547373]
[1770976190034,5.09928223,79.749,79.71,3.45547373]
[1770976190434,5.09928223,79.749,79.693,100.1]
[1770976190634,3.45547373,79.75,79.721,11.2977]
[1770976190938,3.45547373,79.75,79.693,100.1]
[1770976190939,3.45547373,79.77,79.72,3.45547373]
[1770976191139,8.67008797,79.77,79.72,3.45547373]
[1770976191432,8.67008797,79.77,79.74,11.2951]
[1770976191637,3.45547373,79.78,79.73,3.45547373]
[1770976191940,8.67008797,79.78,79.73,3.45547373]
[1770976192148,5.26427687,79.779,79.73,3.45547373]
[1770976192337,5.26427687,79.779,79.74,3.45547373]
[1770976193640,11.29,79.777,79.74,3.45547373]
[1770976193842,16.55427687,79.777,79.74,3.45547373]
[1770976194044,11.2902,79.775,79.74,3.45547373]
[1770976194440,16.56452808,79.775,79.74,3.45547373]
[1770976194641,16.56472808,79.773,79.74,3.45547373]
[1770976194838,5.27432808,79.772,79.74,3.45547373]
[1770976195041,5.27432808,79.772,79.73,3.45547373]
[1770976195240,5.27432808,79.769,79.73,3.45547373]
[1770976195642,5.27432808,79.758,79.72,3.45547373]
[1770976196845,5.27432808,79.758,79.697,100.1]
[1770976196846,5.27257297,79.754,79.714,11.2988]
[1770976197046,5.27257297,79.754,79.72,3.45547373]
[1770976197643,5.27257297,79.752,79.72,3.45547373]
[1770976198442,11.70913349,79.788,79.73,3.45547373]
[1770976198443,5.25747354,79.765,79.73,3.45547373]
[1770976199839,16.54927354,79.764,79.73,3.45547373]
[1770976200039,5.25042002,79.763,79.73,3.45547373]
[1770976200735,5.25042002,79.779,79.74,3.45547373]
[1770976201038,5.25042002,79.779,79.75,3.45547373]
[1770976203241,5.25061136,79.775,79.74,3.45547373]
[1770976204154,5.25117186,79.769,79.729,11.2965]
[1770976204340,5.25117186,79.769,79.73,3.45547373]
[1770976205139,5.25117186,79.767,79.72,3.45547373]
[1770976205538,5.25117186,79.767,79.73,11.2965]
[1770976207945,3.45547373,79.76,79.73,11.2965]
[1770976208142,8.69116036,79.76,79.73,11.2965]
[1770976208945,5.23568663,79.759,79.73,11.2965]
[1770976211252,5.23568663,79.759,79.698,100.5]
[1770976211253,5.23568663,79.759,79.71,3.45547373]
[1770976211652,5.23568663,79.759,79.72,3.45547373]
[1770976212754,5.23568663,79.759,79.727,11.2968]
[1770976216452,5.21917648,79.749,79.688,23.36781417]
[1770976216659,5.21917648,79.749,79.7,3.45547373]
[1770976217356,5.21917648,79.749,79.678,162.34]
[1770976217357,5.21917648,79.746,79.683,23.36781417]
[1770976217558,5.21917648,79.739,79.682,23.36781417]
[1770976217762,8.67465021,79.74,79.69,3.45547373]
[1770976218062,5.20196544,79.749,79.7,3.45547373]
[1770976218659,5.20196544,79.759,79.71,3.45547373]
[1770976218860,5.20196544,79.759,79.71,3.45244917]
[1770976219659,3.45244917,79.75,79.71,3.45244917]
[1770976219860,3.45244917,79.75,79.718,11.2982]
[1770976222559,5.20196544,79.759,79.724,11.2974]
[1770976224663,5.22085353,79.755,79.717,11.2983]
[1770976224956,3.45244917,79.75,79.717,11.2983]
[1770976225164,5.22085353,79.755,79.723,11.2974]
[1770976226665,5.22085353,79.755,79.717,11.2983]
[1770976227264,5.22085353,79.755,79.71,3.45244917]
[1770976227470,5.22085353,79.755,79.722,11.2975]
[1770976229266,5.1954793,79.778,79.73,3.45244917]
[1770976230773,5.1954793,79.778,79.743,11.2946]
[1770976230973,107.26,79.807,79.72,3.45244917]
[1770976230974,5.1933474,79.769,79.72,3.45244917]
[1770976231270,5.19337016,79.759,79.726,11.2971]
[1770976231676,5.19337016,79.759,79.71,3.45244917]
[1770976231973,5.19337016,79.759,79.724,11.2973]
[1770976232274,5.19337016,79.759,79.71,3.45244917]
[1770976233761,5.19414542,79.756,79.716,11.2985]
[1770976238378,5.19414542,79.756,79.721,11.2977]
[1770976252877,5.21782359,79.749,79.715,11.2986]
[1770976253276,5.21782359,79.749,79.7,3.45244917]
[1770976253479,5.21782359,79.749,79.71,3.45244917]
[1770976254885,5.21782359,79.749,79.711,11.2991]
[1770976255686,11.2927,79.757,79.716,11.2984]
[1770976255885,5.21252275,79.756,79.716,11.2984]
[1770976256087,5.21252275,79.756,79.71,3.45244917]
[1770976256286,3.45244917,79.75,79.71,14.75174917]
[1770976256486,106.58,79.785,79.688,147.46]
[1770976256487,3.45244917,79.74,79.69,26.82026334]
[1770976256688,5.20823437,79.749,79.7,3.45244917]
[1770976257186,5.20823437,79.749,79.713,11.2989]
[1770976259493,5.15237247,79.747,79.706,11.2998]
[1770976259684,3.45244917,79.74,79.706,11.2998]
[1770976260989,5.15237247,79.747,79.706,11.2998]
[1770976261389,5.15237247,79.747,79.712,11.299]
[1770976261792,5.15237247,79.747,79.7,3.45244917]
[1770976261991,5.15237247,79.747,79.712,11.299]
[1770976262879,3.45244917,79.74,79.712,11.299]
[1770976263079,22.5792,79.78,79.688,147.46]
[1770976263080,5.16749808,79.729,79.688,147.46]
[1770976263391,5.16749808,79.729,79.68,3.45244917]
[1770976263585,5.16749808,79.729,79.692,11.3019]
[1770976263780,5.16749808,79.729,79.68,3.45244917]
[1770976264179,5.16749808,79.729,79.69,3.45244917]
[1770976264585,8.63639623,79.74,79.7,3.45244917]
[1770976264989,5.18394706,79.739,79.7,3.45244917]
[1770976265692,5.18394706,79.739,79.69,3.45244917]
[1770976265894,16.47924706,79.739,79.701,11.3006]
[1770976267088,11.2953,79.739,79.701,11.3006]
[1770976267289,11.2955,79.737,79.695,11.3015]
[1770976267695,11.2955,79.737,79.7,11.3006]
[1770976268698,5.1260855,79.736,79.7,11.3006]
[1770976269096,5.1260855,79.736,79.705,11.2999]
[1770976269298,5.1260855,79.736,79.675,23.36781417]
[1770976269503,5.1260855,79.736,79.7,3.45244917]
[1770976269693,5.1260855,79.736,79.703,11.3003]
[1770976270391,5.09947689,79.746,79.71,3.45244917]
[1770976270794,5.09947689,79.746,79.7,3.45244917]
[1770976271602,16.39397689,79.745,79.709,11.2994]
[1770976271802,5.09947689,79.744,79.709,11.2994]
[1770976274503,8.58084101,79.74,79.702,11.3004]
[1770976274699,14.30695544,79.77,79.703,159.1]
[1770976274998,14.30695544,79.77,79.701,22.601]
[1770976274999,5.12839184,79.779,79.74,3.45244917]
[1770976275199,5.12839184,79.801,79.76,3.45244917]
[1770976275500,5.12839184,79.789,79.74,3.45244917]
[1770976276097,5.12839184,79.789,79.727,100.54]
[1770976276098,5.12839184,79.789,79.75,3.45244917]
[1770976276694,5.12839184,79.789,79.755,11.2929]
[1770976277097,5.12839184,79.789,79.75,3.45244917]
[1770976278101,5.12839184,79.789,79.76,3.45244917]
[1770976280593,5.24019131,79.807,79.76,3.45244917]
[1770976280997,3.44825493,79.8,79.76,3.44825493]
[1770976281197,5.24019131,79.799,79.76,3.44825493]
[1770976281802,5.24019131,79.799,79.76,14.74045493]
[1770976283302,5.22193732,79.798,79.749,11.2937]
[1770976283611,5.22193732,79.798,79.75,3.44825493]
[1770976284310,5.22205601,79.796,79.75,3.44825493]
[1770976284611,5.22205601,79.794,79.75,3.44825493]
[1770976285300,5.22205601,79.794,79.76,3.44825493]
[1770976286313,5.20281229,79.792,79.752,11.2933]
[1770976287013,5.20281229,79.792,79.76,3.44825493]
[1770976287211,5.20281229,79.792,79.752,11.2933]
[1770976289017,5.22340005,79.79,79.752,11.2933]
[1770976290415,5.2096428,79.788,79.752,11.2933]
[1770976291613,5.20984561,79.786,79.752,11.2933]
[1770976292014,5.20557932,79.803,79.77,3.44825493]
[1770976292213,5.20557932,79.803,79.78,3.44825493]
[1770976294121,5.20557932,79.84,79.79,3.44825493]
[1770976294314,3.44825493,79.86,79.754,37.65]
[1770976294315,5.46529046,79.859,79.82,3.44825493]
[1770976294613,5.46529046,79.858,79.82,3.44825493]
[1770976295400,5.46529046,79.858,79.83,3.44825493]
[1770976295601,5.46529046,79.858,79.821,11.2835]
[1770976296209,5.46529046,79.858,79.828,11.2825]
[1770976298315,8.94175372,79.85,79.8,3.44825493]
[1770976299311,8.94175372,79.85,79.786,22.577]
[1770976299312,8.94175372,79.85,79.81,3.44825493]
[1770976300916,8.94175372,79.85,79.812,11.2848]
[1770976307022,22.5376,79.927,79.841,2.8908878]
[1770976307217,3.44825493,79.9,79.861,2.8908878]
[1770976307517,3.44825493,79.91,79.861,2.8908878]
[1770976307723,11.2712,79.909,79.861,2.8908878]
[1770976308126,3.44825493,79.91,79.871,2.70128222]
[1770976308329,3.44825493,79.94,79.901,2.70128222]
[1770976308627,3.44825493,79.94,79.89,3.44825493]
[1770976308821,3.44825493,79.94,79.89,6.14953715]
[1770976309032,4.0246022,79.939,79.89,6.14953715]
[1770976309325,4.0246022,79.939,79.891,2.70128222]
[1770976309524,7.47285713,79.91,79.848,2.70128222]
[1770976309724,3.44825493,79.9,79.861,2.70128222]
[1770976310119,4.0246022,79.909,79.861,2.70128222]
[1770976310319,109.82825493,79.92,79.88,3.44825493]
[1770976310520,3.44825493,79.92,79.884,11.2747]
[1770976311431,4.0246022,79.922,79.884,11.2747]
[1770976311624,3.44825493,79.92,79.884,11.2747]
[1770976314835,3.44825493,79.91,79.873,2.80011808]
[1770976315133,4.0246022,79.918,79.873,2.80011808]
[1770976315335,3.44825493,79.91,79.873,14.07621808]
[1770976316225,3.44825493,79.91,79.873,2.80011808]
[1770976316640,111.84825493,79.91,79.873,2.80011808]
[1770976316934,111.84825493,79.91,79.822,153.43]
[1770976316935,4.0246022,79.899,79.847,2.799559]
[1770976317130,7.47285713,79.89,79.85,3.44825493]
[1770976317327,4.0246022,79.889,79.847,2.799559]